[Event "FIDE CB Open 2022"]
[Site "Ceske Budejovice"]
[Date "2022.07.07"]
[Round "7.54"]
[White "Huemer, Gerald"]
[Black "Jilek, Marcel"]
[Result "1/2-1/2"]
[ECO "D02"]
[WhiteElo "1627"]
[BlackElo "1565"]
[Annotator "NA RC COMBH"]
[PlyCount "55"]
[EventDate "2022.07.01"]
[EventType "swiss"]
[EventCountry "CZE"]
[SourceTitle "playchess.com"]
[Source "ChessBase"]
[SourceQuality "1"]
[TimeControl "40/5400+30:1800+30"]

1. d4 {[%emt 0:00:08]} d5 {[%emt 0:00:05]} 2. Bf4 {[%emt 0:00:04]} Nf6 {[%emt 0:00:08]} 3. e3 {[%emt 0:00:05]} c5 {[%emt 0:00:05]} 4. c3 {[%emt 0:00:05]} Nc6 {[%emt 0:00:20]} 5. Nd2 {[%emt 0:00:09]} e6 {[%emt 0:01:19]} 6. Ngf3 {[%emt 0:00:24]} Bd6 {[%emt 0:08:51]} 7. Bg3 {[%emt 0:02:29]} O-O {[%emt 0:02:30]} 8. Bd3 {[%emt 0:00:42]} c4 {[%emt 0:01:16]} 9. Bb1 {[%emt 0:00:26]} Bxg3 {[%emt 0:13:48]} 10. hxg3 {[%emt 0:00:13]} Qd6 {[%emt 0:00:10]} 11. Qc2 {[%emt 0:00:18]} g6 {[%emt 0:00:45]} 12. Ng5 {[%emt 0:05:05]} e5 {[%emt 0:01:52]} 13. Ndf3 {[%emt 0:02:15]} exd4 {[%emt 0:07:10]} 14. exd4 {[%emt 0:07:22]} Bf5 {[%emt 0:05:21]} 15. Qd2 {[%emt 0:03:37]} Bxb1 {[%emt 0:01:51]} 16. Rxb1 {[%emt 0:00:01]} Rae8+ {[%emt 0:00:42]} 17. Kf1 {[%emt 0:01:16]} h5 {[%emt 0:09:46]} 18. Qf4 {[%emt 0:09:30]} Qxf4 {[%emt 0:04:17]} 19. gxf4 {[%emt 0:00:09]} Ng4 {[%emt 0:05:53]} 20. Nh4 {[%emt 0:03:10]} Kg7 {[%emt 0:03:02]} 21. Re1 {[%emt 0:04:50]} Rxe1+ {[%emt 0:01:40]} 22. Kxe1 {[%emt 0:00:02]} Re8+ {[%emt 0:00:12]} 23. Kf1 {[%emt 0:00:15]} f6 {[%emt 0:03:28]} 24. Ngf3 {[%emt 0:00:39]} b5 {[%emt 0:01:44]} 25. f5 {[%emt 0:03:14]} g5 {[%emt 0:01:29]} 26. Ng6 {[%emt 0:00:31]} Nh6 {[%emt 0:00:37]} 27. Rxh5 {[%emt 0:03:48]} Nxf5 {[%emt 0:00:22]} 28. Nf4 {[%emt 0:00:56]} 1/2-1/2

[Event "FIDE CB Open 2022"]
[Site "Ceske Budejovice"]
[Date "2022.07.08"]
[Round "8.1"]
[White "Hrbek, Stepan"]
[Black "Roshka, Yevgeniy"]
[Result "*"]
[ECO "B06"]
[WhiteElo "2272"]
[BlackElo "2497"]
[Annotator "TA"]
[PlyCount "67"]
[EventDate "2022.07.01"]
[EventType "swiss"]
[EventCountry "CZE"]
[SourceTitle "playchess.com"]
[Source "ChessBase"]
[SourceQuality "1"]
[TimeControl "40/5400+30:1800+30"]

{[%evp 10,67,47,44,35,39,43,27,30,25,45,28,24,0,0,-40,0,0,0,0,29,-118,-125,-91,-94,-152,-135,-176,-121,-120,-133,-137,-125,-100,-133,-139,-122,-199,-198,-193,-181,-186,-199,-202,-179,-197,-184,-159,-141,-339,-326,-404,-418,-412,-407,-389,-375,-417,-416,-312]} 1. Nf3 {[%emt 0:00:13]} g6 {[%emt 0:00:07]} 2. e4 {[%emt 0:00:06]} Bg7 {[%emt 0:00:03]} 3. d4 {[%emt 0:00:09]} d6 {[%emt 0:00:01]} 4. Bc4 {[%emt 0:00:20]} e6 {[%emt 0:00:11]} 5. Bb3 {[%emt 0:00:16]} Ne7 {[%emt 0:00:05]} 6. O-O {[%emt 0:00:27]} O-O {[%emt 0:00:04] B06: Modern Defence.} 7. c3 {[%emt 0:00:13]} Nd7 {[%emt 0:00:40]} 8. Nbd2 {[%emt 0:00:54]} a6 {[%emt 0:00:08] [#] White has an edge.} 9. a4 $146 {[%emt 0:00:37]} ({Predecessor:} 9. Re1 h6 10. Nf1 b6 11. Ng3 Bb7 12. Bd2 c5 13. h4 Kh8 14. Qe2 Ng8 15. Rad1 {1-0 (47) Gonzalez Vidal,Y (2559)-Shabalov,A (2584) Greensboro 2018}) 9... Rb8 {[%emt 0:05:10]} 10. a5 {[%emt 0:02:14]} c5 {[%emt 0:02:46]} 11. d5 {[%emt 0:22:01]} exd5 {[%emt 0:00:15]} 12. Bxd5 {[%emt 0:00:18]} Nxd5 {[%emt 0:04:57]} 13. exd5 {[%emt 0:00:07]} b5 {[%emt 0:13:10]} 14. Ne4 {[%emt 0:07:22]} Qc7 {[%emt 0:01:27]} 15. Bg5 {[%emt 0:16:08]} (15. Bf4 $11 Ne5 16. Nxe5 dxe5 17. Be3) 15... f5 $17 {[%emt 0:08:42]} 16. Ng3 {[%emt 0:06:54]} h6 {[%emt 0:03:33]} 17. Bf4 {[%emt 0:11:11]} (17. Be7 $142 Rf7 18. Re1) 17... g5 {[%emt 0:14:54]} 18. Bxg5 {[%emt 0:00:06] Hoping for Bf4.} hxg5 {[%emt 0:00:07]} (18... f4 $1 $19 {[%cal Rf4g3]} 19. Bxf4 Rxf4) 19. Nxg5 {[%emt 0:00:05]} Nf6 {[%emt 0:00:28] ...f4 is the strong threat.} 20. Ne6 {[%emt 0:04:58]} Bxe6 {[%emt 0:00:15]} 21. dxe6 {[%emt 0:00:06]} Rbe8 {[%emt 0:07:18]} 22. Re1 {[%emt 0:00:59] [#]} d5 $1 {[%emt 0:01:10]} 23. Nxf5 {[%emt 0:00:47]} (23. Qd3 $17) 23... Qf4 $19 {[%emt 0:00:42]} 24. e7 {[%emt 0:02:36] [#]} Rf7 {[%emt 0:00:30]} ({Inferior is} 24... Qxf5 25. exf8=N Rxf8 26. Re3 $11) 25. Qf3 {[%emt 0:00:35]} Qxf3 {[%emt 0:01:24]} 26. gxf3 {[%emt 0:00:07]} Nh5 {[%emt 0:01:17]} 27. Nd6 {[%emt 0:00:50]} Rexe7 {[%emt 0:00:02]} 28. Nxf7 {[%emt 0:00:11]} Kxf7 {[%emt 0:01:16]} 29. Kf1 $2 {[%emt 0:09:33] This move loses the game for White.} (29. Rxe7+ $17 {was called for.} Kxe7 30. Kf1) 29... Be5 {[%emt 0:02:25]} 30. Rad1 {[%emt 0:00:55]} Nf4 {[%emt 0:00:21] Black is winning.} 31. Re3 {[%emt 0:00:27]} c4 {[%emt 0:01:46]} 32. Rde1 {[%emt 0:05:21]} Kf6 {[%emt 0:00:32]} 33. h4 {[%emt 0:00:09]} Kf5 {[%emt 0:01:12]} 34. Kg1 {[%emt 0:01:49] Weighted Error Value: White=0.34/Black=0.05 (flawless)} *

[Event "FIDE CB Open 2022"]
[Site "Ceske Budejovice"]
[Date "2022.07.08"]
[Round "8.2"]
[White "Toman, Ondrej"]
[Black "Havelka, Josef"]
[Result "0-1"]
[ECO "A45"]
[WhiteElo "2276"]
[BlackElo "2396"]
[Annotator "RC"]
[PlyCount "130"]
[EventDate "2022.07.01"]
[EventType "swiss"]
[EventCountry "CZE"]
[SourceTitle "playchess.com"]
[Source "ChessBase"]
[SourceQuality "1"]
[TimeControl "40/5400+30:1800+30"]

1. d4 {[%emt 0:00:05]} Nf6 {[%emt 0:00:13]} 2. Bg5 {[%emt 0:00:02]} Ne4 {[%emt 0:00:34]} 3. h4 {[%emt 0:00:05]} c5 {[%emt 0:00:47]} 4. d5 {[%emt 0:00:06]} Qb6 {[%emt 0:01:41]} 5. Nd2 {[%emt 0:00:01]} h6 {[%emt 0:00:56]} 6. Nxe4 {[%emt 0:07:23]} hxg5 {[%emt 0:00:46]} 7. Nxg5 {[%emt 0:01:12]} Qb4+ {[%emt 0:13:20]} 8. c3 {[%emt 0:02:51]} Qxb2 {[%emt 0:00:17]} 9. Qc1 {[%emt 0:01:41]} Qxc1+ {[%emt 0:04:05]} 10. Rxc1 {[%emt 0:00:02]} g6 {[%emt 0:01:09]} 11. e4 {[%emt 0:03:58]} Bh6 {[%emt 0:18:12]} 12. f4 {[%emt 0:00:02]} f6 {[%emt 0:02:31]} 13. N5h3 {[%emt 0:00:31]} d6 {[%emt 0:03:49]} 14. Rb1 {[%emt 0:06:00]} Nd7 {[%emt 0:09:32]} 15. g3 {[%emt 0:12:30]} Nb6 {[%emt 0:06:04]} 16. Bd3 {[%emt 0:08:14]} Bd7 {[%emt 0:11:38]} 17. c4 {[%emt 0:12:41]} O-O-O {[%emt 0:00:21]} 18. Nf3 {[%emt 0:11:01]} e5 {[%emt 0:00:18]} 19. fxe5 {[%emt 0:01:27]} dxe5 {[%emt 0:00:23]} 20. Ke2 {[%emt 0:05:30]} Kc7 {[%emt 0:01:05]} 21. Nf2 {[%emt 0:01:52]} Nc8 {[%emt 0:10:49]} 22. Nd1 {[%emt 0:07:47]} Nd6 {[%emt 0:01:12]} 23. Nc3 {[%emt 0:01:19]} Rde8 {[%emt 0:03:13]} 24. Rbf1 {[%emt 0:00:33]} Bg7 {[%emt 0:01:51]} 25. Kd2 {[%emt 0:00:52]} f5 {[%emt 0:02:37]} 26. Rh2 {[%emt 0:01:34]} Ref8 {[%emt 0:01:35]} 27. Rhf2 {[%emt 0:05:36]} Bh6+ {[%emt 0:00:14]} 28. Ke2 {[%emt 0:00:50]} Re8 {[%emt 0:00:10]} 29. Rg1 {[%emt 0:03:32]} Re7 {[%emt 0:01:24]} 30. Rff1 {[%emt 0:03:01]} Rf8 {[%emt 0:02:28]} 31. Rf2 {[%emt 0:00:19]} a6 {[%emt 0:00:16]} 32. a4 {[%emt 0:01:27]} fxe4 {[%emt 0:01:09]} 33. Nxe4 {[%emt 0:00:02]} Nxe4 {[%emt 0:00:33]} 34. Bxe4 {[%emt 0:00:01]} Bxa4 {[%emt 0:00:15]} 35. Bxg6 {[%emt 0:01:29]} Bb3 {[%emt 0:00:32]} 36. Kd3 {[%emt 0:02:10]} b5 {[%emt 0:00:08]} 37. cxb5 {[%emt 0:00:17]} axb5 {[%emt 0:00:10]} 38. Be4 {[%emt 0:00:31]} Bc4+ {[%emt 0:00:49]} 39. Kc2 {[%emt 0:00:34]} Be3 {[%emt 0:01:23]} 40. Ra1 {[%emt 0:00:02]} Bxf2 {[%emt 0:00:59]} 41. Ra7+ {[%emt 0:31:02]} Kd6 {[%emt 0:11:48]} 42. Ra6+ {[%emt 0:00:00]} Kd7 {[%emt 0:02:20]} 43. Ra7+ {[%emt 0:00:00]} Ke8 {[%emt 0:05:38]} 44. Bg6+ {[%emt 0:00:00]} Kd8 {[%emt 0:04:37]} 45. Ra8+ {[%emt 0:00:00]} Kc7 {[%emt 0:00:05]} 46. Rxf8 {[%emt 0:00:00]} Bxd5 {[%emt 0:05:26]} 47. Nxe5 {[%emt 0:00:00]} Bxg3 {[%emt 0:00:10]} 48. Nd3 {[%emt 0:00:00]} c4 {[%emt 0:01:36]} 49. Nb4 {[%emt 0:00:00]} Bb7 {[%emt 0:00:40]} 50. Rf7 {[%emt 0:00:00]} Bxh4 {[%emt 0:00:40]} 51. Kb2 {[%emt 0:00:00]} Rxf7 {[%emt 0:00:37]} 52. Bxf7 {[%emt 0:00:00]} Kd6 {[%emt 0:00:17]} 53. Nc2 {[%emt 0:00:00]} Kc5 {[%emt 0:00:16]} 54. Bg6 {[%emt 0:00:00]} b4 {[%emt 0:00:33]} 55. Kb1 {[%emt 0:00:00]} Bf2 {[%emt 0:00:32]} 56. Bf5 {[%emt 0:01:45]} Bd5 {[%emt 0:00:34]} 57. Kb2 {[%emt 0:01:09]} b3 {[%emt 0:01:01]} 58. Na3 {[%emt 0:01:04]} Bd4+ {[%emt 0:00:47]} 59. Kc1 {[%emt 0:00:17]} Kb4 {[%emt 0:00:37]} 60. Nb1 {[%emt 0:00:24]} c3 {[%emt 0:00:25]} 61. Nxc3 {[%emt 0:00:39]} Kxc3 {[%emt 0:00:25]} 62. Kb1 {[%emt 0:00:13]} Bc4 {[%emt 0:00:45]} 63. Ka1 {[%emt 0:00:46]} Be2 {[%emt 0:00:51]} 64. Be4 {[%emt 0:00:33]} Bd1 {[%emt 0:00:25]} 65. Bc2 {[%emt 0:01:42]} Kxc2# {[%emt 0:00:14]} 0-1

[Event "FIDE CB Open 2022"]
[Site "Ceske Budejovice"]
[Date "2022.07.08"]
[Round "8.3"]
[White "Neuman, Petr"]
[Black "Zeman, Matyas"]
[Result "1-0"]
[ECO "D46"]
[WhiteElo "2378"]
[BlackElo "2262"]
[Annotator "RC"]
[PlyCount "45"]
[EventDate "2022.07.01"]
[EventType "swiss"]
[EventCountry "CZE"]
[SourceTitle "playchess.com"]
[Source "ChessBase"]
[SourceQuality "1"]
[TimeControl "40/5400+30:1800+30"]

1. c4 {[%emt 0:00:04]} e6 {[%emt 0:00:10]} 2. Nc3 {[%emt 0:00:10]} d5 {[%emt 0:00:07]} 3. d4 {[%emt 0:00:08]} c6 {[%emt 0:00:10]} 4. e3 {[%emt 0:00:27]} Nf6 {[%emt 0:00:11]} 5. Nf3 {[%emt 0:00:11]} Nbd7 {[%emt 0:00:11]} 6. a3 {[%emt 0:08:50]} Bd6 {[%emt 0:02:13]} 7. Bd3 {[%emt 0:00:27]} dxc4 {[%emt 0:01:08]} 8. Bxc4 {[%emt 0:00:04]} b5 {[%emt 0:00:07]} 9. Ba2 {[%emt 0:00:15]} O-O {[%emt 0:02:31]} 10. O-O {[%emt 0:01:22]} Bb7 {[%emt 0:01:00]} 11. e4 {[%emt 0:01:37]} e5 {[%emt 0:00:08]} 12. Re1 {[%emt 0:04:42]} a6 {[%emt 0:12:38]} 13. Bg5 {[%emt 0:06:31]} h6 {[%emt 0:01:37]} 14. Bh4 {[%emt 0:00:11]} Qc7 {[%emt 0:02:26]} 15. dxe5 {[%emt 0:05:24]} Nxe5 {[%emt 0:16:08]} 16. Bxf6 {[%emt 0:00:43]} Nxf3+ {[%emt 0:00:08]} 17. Qxf3 {[%emt 0:00:04]} gxf6 {[%emt 0:00:15]} 18. Qg4+ {[%emt 0:14:45]} Kh8 {[%emt 0:00:38]} 19. Qh4 {[%emt 0:00:53]} Kg7 {[%emt 0:00:45]} 20. Re3 {[%emt 0:02:31]} Bc8 {[%emt 0:09:52]} 21. Ne2 {[%emt 0:01:19]} Qe7 {[%emt 0:07:46]} 22. Ng3 {[%emt 0:01:48]} f5 {[%emt 0:00:05]} 23. Nh5+ {[%emt 0:01:35]} 1-0

[Event "FIDE CB Open 2022"]
[Site "Ceske Budejovice"]
[Date "2022.07.08"]
[Round "8.4"]
[White "Zima, Jan"]
[Black "Velicka, Petr"]
[Result "1/2-1/2"]
[ECO "B11"]
[WhiteElo "2134"]
[BlackElo "2384"]
[Annotator "RC"]
[PlyCount "28"]
[EventDate "2022.07.01"]
[EventType "swiss"]
[EventCountry "CZE"]
[SourceTitle "playchess.com"]
[Source "ChessBase"]
[SourceQuality "1"]
[TimeControl "40/5400+30:1800+30"]

1. e4 {[%emt 0:00:03]} c6 {[%emt 0:00:05]} 2. Nc3 {[%emt 0:00:17]} d5 {[%emt 0:00:11]} 3. Nf3 {[%emt 0:00:06]} Bg4 {[%emt 0:02:17]} 4. h3 {[%emt 0:00:09]} Bxf3 {[%emt 0:00:04]} 5. Qxf3 {[%emt 0:00:04]} Nf6 {[%emt 0:00:07]} 6. d3 {[%emt 0:01:04]} e6 {[%emt 0:00:10]} 7. Bd2 {[%emt 0:00:15]} Bb4 {[%emt 0:01:27]} 8. a3 {[%emt 0:00:26]} Ba5 {[%emt 0:00:06]} 9. e5 {[%emt 0:00:34]} Nfd7 {[%emt 0:06:10]} 10. Qg3 {[%emt 0:00:12]} Rg8 {[%emt 0:03:17]} 11. d4 {[%emt 0:07:24]} Nf8 {[%emt 0:04:22]} 12. Bd3 {[%emt 0:06:01]} Nbd7 {[%emt 0:03:45]} 13. b4 {[%emt 0:08:29]} Bc7 {[%emt 0:02:15]} 14. O-O {[%emt 0:02:30]} f5 {[%emt 0:00:30]} 1/2-1/2

[Event "FIDE CB Open 2022"]
[Site "Ceske Budejovice"]
[Date "2022.07.08"]
[Round "8.5"]
[White "Maryasin, Boris"]
[Black "Cuhra, Martin"]
[Result "*"]
[ECO "B26"]
[WhiteElo "2260"]
[BlackElo "2225"]
[Annotator "RC"]
[PlyCount "57"]
[EventDate "2022.07.01"]
[EventType "swiss"]
[EventCountry "CZE"]
[SourceTitle "playchess.com"]
[Source "ChessBase"]
[SourceQuality "1"]
[TimeControl "40/5400+30:1800+30"]

1. e4 {[%emt 0:00:07]} c5 {[%emt 0:00:06]} 2. Nc3 {[%emt 0:00:19]} g6 {[%emt 0:00:16]} 3. g3 {[%emt 0:00:14]} Bg7 {[%emt 0:00:11]} 4. Bg2 {[%emt 0:00:06]} Nc6 {[%emt 0:00:16]} 5. d3 {[%emt 0:00:11]} e6 {[%emt 0:00:49]} 6. Be3 {[%emt 0:00:22]} Nd4 {[%emt 0:00:47]} 7. Qd2 {[%emt 0:00:22]} Ne7 {[%emt 0:01:09]} 8. Nd1 {[%emt 0:02:41]} d6 {[%emt 0:04:54]} 9. c3 {[%emt 0:01:28]} Ndc6 {[%emt 0:01:35]} 10. Bh6 {[%emt 0:01:13]} Bxh6 {[%emt 0:11:12]} 11. Qxh6 {[%emt 0:00:08]} Ne5 {[%emt 0:00:08]} 12. Qd2 {[%emt 0:01:32]} Bd7 {[%emt 0:09:27]} 13. f4 {[%emt 0:02:17]} N5c6 {[%emt 0:01:10]} 14. Nf3 {[%emt 0:00:38]} b5 {[%emt 0:05:48]} 15. Ne3 {[%emt 0:00:56]} O-O {[%emt 0:15:09]} 16. h4 {[%emt 0:05:39]} b4 {[%emt 0:04:06]} 17. h5 {[%emt 0:04:29]} bxc3 {[%emt 0:00:45]} 18. bxc3 {[%emt 0:00:08]} f6 {[%emt 0:05:44]} 19. hxg6 {[%emt 0:10:29]} hxg6 {[%emt 0:00:47]} 20. Nh4 {[%emt 0:00:21]} Rb8 {[%emt 0:06:28]} 21. Rc1 {[%emt 0:09:48]} Kg7 {[%emt 0:07:13]} 22. O-O {[%emt 0:03:25]} Qc7 {[%emt 0:04:57]} 23. g4 {[%emt 0:08:08]} e5 {[%emt 0:04:29]} 24. Nd5 {[%emt 0:12:10]} Qd8 {[%emt 0:03:26]} 25. g5 {[%emt 0:00:48]} fxg5 {[%emt 0:03:20]} 26. fxg5 {[%emt 0:00:23]} Nxd5 {[%emt 0:01:06]} 27. exd5 {[%emt 0:00:08]} Ne7 {[%emt 0:00:32]} 28. Rxf8 {[%emt 0:11:19]} Qxf8 {[%emt 0:00:30]} 29. d4 {[%emt 0:00:22]} *

[Event "FIDE CB Open 2022"]
[Site "Ceske Budejovice"]
[Date "2022.07.08"]
[Round "8.6"]
[White "Palchuk, Andrii"]
[Black "Johannsson, Birkir Isak"]
[Result "1/2-1/2"]
[ECO "E11"]
[WhiteElo "2248"]
[BlackElo "2131"]
[Annotator "RC"]
[PlyCount "49"]
[EventDate "2022.07.01"]
[EventType "swiss"]
[EventCountry "CZE"]
[SourceTitle "playchess.com"]
[Source "ChessBase"]
[SourceQuality "1"]
[TimeControl "40/5400+30:1800+30"]

1. d4 {[%emt 0:00:07]} d5 {[%emt 0:00:09]} 2. Nf3 {[%emt 0:00:13]} Nf6 {[%emt 0:00:07]} 3. c4 {[%emt 0:00:02]} e6 {[%emt 0:00:07]} 4. g3 {[%emt 0:00:18]} Bb4+ {[%emt 0:00:06]} 5. Bd2 {[%emt 0:01:53]} a5 {[%emt 0:00:08]} 6. Qc2 {[%emt 0:01:23]} O-O {[%emt 0:00:11]} 7. Bg2 {[%emt 0:01:17]} c5 {[%emt 0:00:14]} 8. dxc5 {[%emt 0:04:29]} d4 {[%emt 0:00:33]} 9. Bxb4 {[%emt 0:04:27]} axb4 {[%emt 0:00:07]} 10. O-O {[%emt 0:00:57]} Nc6 {[%emt 0:00:11]} 11. Nbd2 {[%emt 0:04:59]} Qe7 {[%emt 0:02:01]} 12. Ng5 {[%emt 0:04:07]} Qxc5 {[%emt 0:17:02]} 13. Nde4 {[%emt 0:03:48]} Nxe4 {[%emt 0:00:36]} 14. Nxe4 {[%emt 0:00:05]} Qe7 {[%emt 0:01:16]} 15. c5 {[%emt 0:05:23]} e5 {[%emt 0:05:49]} 16. a3 {[%emt 0:00:43]} Be6 {[%emt 0:08:49]} 17. axb4 {[%emt 0:02:58]} Nxb4 {[%emt 0:00:22]} 18. Qd2 {[%emt 0:00:15]} Nd5 {[%emt 0:03:55]} 19. Rfc1 {[%emt 0:19:21]} h6 {[%emt 0:02:59]} 20. b4 {[%emt 0:02:17]} b6 {[%emt 0:10:52]} 21. f4 {[%emt 0:08:25]} bxc5 {[%emt 0:04:09]} 22. bxc5 {[%emt 0:02:28]} f6 {[%emt 0:03:03]} 23. Rxa8 {[%emt 0:01:04]} Rxa8 {[%emt 0:00:02]} 24. f5 {[%emt 0:00:15]} Bf7 {[%emt 0:02:47]} 25. Nd6 {[%emt 0:09:10]} 1/2-1/2

[Event "FIDE CB Open 2022"]
[Site "Ceske Budejovice"]
[Date "2022.07.08"]
[Round "8.7"]
[White "Kratochvil, Vit"]
[Black "Domalchuk-Jonasson, Aleksandr"]
[Result "1-0"]
[ECO "E17"]
[WhiteElo "2237"]
[BlackElo "2244"]
[Annotator "RC"]
[PlyCount "125"]
[EventDate "2022.07.01"]
[EventType "swiss"]
[EventCountry "CZE"]
[SourceTitle "playchess.com"]
[Source "ChessBase"]
[SourceQuality "1"]
[TimeControl "40/5400+30:1800+30"]

1. c4 {[%emt 0:00:04]} e6 {[%emt 0:00:37]} 2. Nf3 {[%emt 0:01:54]} Nf6 {[%emt 0:01:10]} 3. g3 {[%emt 0:01:12]} d5 {[%emt 0:02:57]} 4. b3 {[%emt 0:03:09]} Be7 {[%emt 0:02:39]} 5. Bb2 {[%emt 0:00:37]} O-O {[%emt 0:00:28]} 6. Bg2 {[%emt 0:00:47]} c5 {[%emt 0:06:15]} 7. O-O {[%emt 0:03:40]} b6 {[%emt 0:03:16]} 8. d4 {[%emt 0:15:52]} Bb7 {[%emt 0:07:10]} 9. cxd5 {[%emt 0:19:53]} Nxd5 {[%emt 0:03:14]} 10. Nbd2 {[%emt 0:05:58]} cxd4 {[%emt 0:07:07]} 11. Nxd4 {[%emt 0:00:31]} Nc6 {[%emt 0:01:24]} 12. Nxc6 {[%emt 0:12:20]} Bxc6 {[%emt 0:00:04]} 13. Rc1 {[%emt 0:00:12]} Rc8 {[%emt 0:03:28]} 14. e4 {[%emt 0:06:06]} Nb4 {[%emt 0:14:48]} 15. Qg4 {[%emt 0:08:19]} Bf6 {[%emt 0:04:56]} 16. e5 {[%emt 0:15:22]} Bg5 {[%emt 0:05:12]} 17. Rxc6 {[%emt 0:02:04]} Nxc6 {[%emt 0:01:22]} 18. Ne4 {[%emt 0:00:04]} Bh6 {[%emt 0:19:34]} 19. Nf6+ {[%emt 0:01:19]} Kh8 {[%emt 0:00:05]} 20. Rd1 {[%emt 0:00:26]} Qc7 {[%emt 0:04:39]} 21. Rd7 {[%emt 0:00:30]} Nxe5 {[%emt 0:04:54]} 22. Rxc7 {[%emt 0:00:17]} Nxg4 {[%emt 0:00:05]} 23. Rxc8 {[%emt 0:00:07]} Rxc8 {[%emt 0:00:08]} 24. Nxg4 {[%emt 0:00:05]} Bc1 {[%emt 0:01:03]} 25. Bd4 {[%emt 0:01:34]} Rc2 {[%emt 0:02:45]} 26. Ne5 {[%emt 0:00:32]} Kg8 {[%emt 0:00:52]} 27. a4 {[%emt 0:00:30]} Bb2 {[%emt 0:00:44]} 28. Nf3 {[%emt 0:00:27]} Bxd4 {[%emt 0:01:08]} 29. Nxd4 {[%emt 0:00:02]} Rc1+ {[%emt 0:01:32]} 30. Bf1 {[%emt 0:00:05]} e5 {[%emt 0:01:05]} 31. Nb5 {[%emt 0:01:19]} a6 {[%emt 0:00:20]} 32. Nd6 {[%emt 0:00:27]} b5 {[%emt 0:00:39]} 33. axb5 {[%emt 0:00:29]} axb5 {[%emt 0:00:31]} 34. Kg2 {[%emt 0:00:34]} b4 {[%emt 0:00:09]} 35. Nc4 {[%emt 0:00:33]} Rb1 {[%emt 0:00:57]} 36. Na5 {[%emt 0:00:21]} Rd1 {[%emt 0:00:40]} 37. Nc6 {[%emt 0:00:38]} Rd6 {[%emt 0:00:30]} 38. Nxe5 {[%emt 0:00:19]} f6 {[%emt 0:00:13]} 39. Bc4+ {[%emt 0:00:12]} Kf8 {[%emt 0:00:06]} 40. Nd3 {[%emt 0:00:10]} Rb6 {[%emt 0:00:06]} 41. Nf4 {[%emt 0:02:23]} Ke8 {[%emt 0:05:48]} 42. Kf3 {[%emt 0:09:20]} Kd7 {[%emt 0:02:11]} 43. Nh5 {[%emt 0:04:56]} g6 {[%emt 0:01:35]} 44. Nf4 {[%emt 0:00:08]} Kd6 {[%emt 0:02:14]} 45. Ke3 {[%emt 0:02:02]} Kc5 {[%emt 0:03:19]} 46. h4 {[%emt 0:01:20]} Rb8 {[%emt 0:01:15]} 47. h5 {[%emt 0:03:05]} gxh5 {[%emt 0:02:46]} 48. Nxh5 {[%emt 0:07:27]} Rf8 {[%emt 0:03:43]} 49. Ng7 {[%emt 0:00:30]} Rh8 {[%emt 0:00:30]} 50. Ke4 {[%emt 0:00:30]} Kd6 {[%emt 0:00:30]} 51. Kd4 {[%emt 0:00:30]} h6 {[%emt 0:00:30]} 52. Ke4 {[%emt 0:00:30]} Rh7 {[%emt 0:05:24]} 53. Nh5 {[%emt 0:00:45]} Ke7 {[%emt 0:00:04]} 54. g4 {[%emt 0:00:30]} Rh8 {[%emt 0:00:04]} 55. Kf5 {[%emt 0:00:34]} Rf8 {[%emt 0:01:51]} 56. Nf4 {[%emt 0:00:16]} Kd6 {[%emt 0:00:11]} 57. Nd5 {[%emt 0:00:20]} Rc8 {[%emt 0:02:00]} 58. Nxb4 {[%emt 0:01:14]} Rc5+ {[%emt 0:00:00]} 59. Kxf6 {[%emt 0:01:29]} Rc8 {[%emt 0:00:00]} 60. Nd5 {[%emt 0:00:30]} Rf8+ {[%emt 0:00:01]} 61. Kg6 {[%emt 0:00:31]} Rg8+ {[%emt 0:00:04]} 62. Kh5 {[%emt 0:00:00]} Rg7 {[%emt 0:00:06]} 63. f4 {[%emt 0:00:19]} 1-0